[Event "Live Chess"]
[Site "Chess.com"]
[Date "2024.06.01"]
[Round "-"]
[White "Plato_77"]
[Black "Pandreq"]
[Result "0-1"]
[WhiteElo "1333"]
[BlackElo "1191"]
[TimeControl "300"]
[EndTime "14:55:40 PDT"]
[Termination "Pandreq won by resignation"]

1. d4 {[%clk 0:04:57.2]} 1... d5 {[%clk 0:04:58.8]} 2. Bf4 {[%clk 0:04:54.4]}
2... c6 {[%clk 0:04:57.2]} 3. Nf3 {[%clk 0:04:48.3]} 3... Nf6 {[%clk 0:04:55.6]}
4. e3 {[%clk 0:04:46.8]} 4... Bf5 {[%clk 0:04:53.5]} 5. c4 {[%clk 0:04:45.3]}
5... e6 {[%clk 0:04:52]} 6. Qb3 {[%clk 0:04:41]} 6... Qc8 {[%clk 0:04:49.5]} 7.
cxd5 {[%clk 0:04:38.4]} 7... cxd5 {[%clk 0:04:47.3]} 8. Bb5+ {[%clk 0:04:36.8]}
8... Nbd7 {[%clk 0:04:42.5]} 9. Ne5 {[%clk 0:04:33.6]} 9... a6 {[%clk 0:04:38]}
10. Bxd7+ {[%clk 0:04:07.6]} 10... Nxd7 {[%clk 0:04:32.5]} 11. Nd2 {[%clk
0:04:03]} 11... Nxe5 {[%clk 0:04:20.9]} 12. Bxe5 {[%clk 0:04:02.9]} 12... Qc2
{[%clk 0:03:56]} 13. Qxc2 {[%clk 0:03:56.9]} 13... Bxc2 {[%clk 0:03:54.5]} 14.
Rc1 {[%clk 0:03:56.2]} 14... Bd3 {[%clk 0:03:33.6]} 15. Rc7 {[%clk 0:03:42]}
15... b5 {[%clk 0:03:27.1]} 16. f3 {[%clk 0:03:19]} 16... f6 {[%clk 0:03:20]}
17. Kf2 {[%clk 0:03:17.5]} 17... fxe5 {[%clk 0:03:15.3]} 18. dxe5 {[%clk
0:03:15.2]} 18... Bb4 {[%clk 0:02:51.2]} 19. Nb3 {[%clk 0:03:10.2]} 19... O-O
{[%clk 0:02:43.3]} 20. Rhc1 {[%clk 0:03:07.3]} 20... Bc4 {[%clk 0:02:40]} 21.
Nd4 {[%clk 0:02:58.4]} 21... Rfe8 {[%clk 0:02:32.9]} 22. b3 {[%clk 0:02:54.9]}
22... Bd2 {[%clk 0:02:22.5]} 23. Rc2 {[%clk 0:02:45.7]} 23... Ba5 {[%clk
0:02:17.3]} 24. bxc4 {[%clk 0:02:43.6]} 24... Bxc7 {[%clk 0:02:15.6]} 25. cxd5
{[%clk 0:02:40.4]} 25... Bxe5 {[%clk 0:02:10.9]} 26. dxe6 {[%clk 0:02:35.6]}
26... Bxd4 {[%clk 0:02:09.1]} 27. exd4 {[%clk 0:02:34.6]} 27... Rxe6 {[%clk
0:02:08]} 28. d5 {[%clk 0:02:26.1]} 28... Rd6 {[%clk 0:02:05.8]} 29. Rd2 {[%clk
0:02:23.5]} 29... Rad8 {[%clk 0:02:05.2]} 0-1

[Event "Live Chess"]
[Site "Chess.com"]
[Date "2024.06.01"]
[Round "-"]
[White "gmnorfolk"]
[Black "agamilewska"]
[Result "1-0"]
[WhiteElo "2107"]
[BlackElo "1770"]
[TimeControl "300"]
[EndTime "14:55:51 PDT"]
[Termination "gmnorfolk won by resignation"]

1. e4 {[%clk 0:04:56.5]} 1... e5 {[%clk 0:04:58.9]} 2. Nf3 {[%clk 0:04:50.8]}
2... Nc6 {[%clk 0:04:56.1]} 3. Bc4 {[%clk 0:04:41.5]} 3... h6 {[%clk 0:04:54.1]}
4. O-O {[%clk 0:04:38.6]} 4... Nf6 {[%clk 0:04:53.5]} 5. d4 {[%clk 0:04:37]}
5... exd4 {[%clk 0:04:52.4]} 6. e5 {[%clk 0:04:35.1]} 6... Nh7 {[%clk
0:04:51.4]} 7. Nxd4 {[%clk 0:04:32.2]} 7... Nxd4 {[%clk 0:04:50.5]} 8. Qxd4
{[%clk 0:04:30.5]} 8... Be7 {[%clk 0:04:49.1]} 9. Nc3 {[%clk 0:04:25.1]} 9...
O-O {[%clk 0:04:47.8]} 10. Qe4 {[%clk 0:04:15.1]} 10... Ng5 {[%clk 0:04:32.2]}
11. Qe2 {[%clk 0:04:13.3]} 11... d6 {[%clk 0:04:27.7]} 12. f4 {[%clk 0:04:11.8]}
12... Ne6 {[%clk 0:04:22.2]} 13. Be3 {[%clk 0:04:04.6]} 13... c6 {[%clk
0:04:15.8]} 14. f5 {[%clk 0:04:02.5]} 14... Nc5 {[%clk 0:04:09.4]} 15. Bxc5
{[%clk 0:03:57.7]} 15... dxc5 {[%clk 0:04:09.3]} 16. f6 {[%clk 0:03:56.7]} 16...
gxf6 {[%clk 0:04:06.3]} 17. exf6 {[%clk 0:03:53.2]} 17... Bxf6 {[%clk 0:04:05]}
18. Ne4 {[%clk 0:03:47.6]} 18... Qd4+ {[%clk 0:03:56.8]} 19. Kh1 {[%clk
0:03:45.4]} 19... Bg7 {[%clk 0:03:55.7]} 20. Rad1 {[%clk 0:03:40.9]} 20... Qxb2
{[%clk 0:03:53.7]} 21. Bxf7+ {[%clk 0:03:31.9]} 21... Rxf7 {[%clk 0:03:46.5]}
22. Rd8+ {[%clk 0:03:29.9]} 22... Rf8 {[%clk 0:03:45.7]} 23. Rdxf8+ {[%clk
0:02:55]} 23... Bxf8 {[%clk 0:03:42.7]} 24. Nf6+ {[%clk 0:02:52]} 24... Kh8
{[%clk 0:03:29.9]} 25. Qe8 {[%clk 0:02:45.8]} 25... Bh3 {[%clk 0:02:56.4]} 26.
Qg6 {[%clk 0:02:34.3]} 26... Bxg2+ {[%clk 0:02:49.7]} 27. Kxg2 {[%clk
0:02:30.8]} 27... Qxf6 {[%clk 0:02:34]} 28. Rxf6 {[%clk 0:02:27.8]} 28... Bg7
{[%clk 0:02:33.2]} 29. Rf7 {[%clk 0:02:24.3]} 29... Rg8 {[%clk 0:02:27]} 30. Kh3
{[%clk 0:02:20.3]} 1-0

[Event "Live Chess"]
[Site "Chess.com"]
[Date "2024.06.01"]
[Round "-"]
[White "bonantagulo"]
[Black "JanMur7"]
[Result "1-0"]
[WhiteElo "2149"]
[BlackElo "2283"]
[TimeControl "300"]
[EndTime "14:55:56 PDT"]
[Termination "bonantagulo won on time"]

1. d4 {[%clk 0:04:57.8]} 1... Nf6 {[%clk 0:04:56.8]} 2. c4 {[%clk 0:04:56.8]}
2... a6 {[%clk 0:04:56.4]} 3. Nf3 {[%clk 0:04:55.9]} 3... b5 {[%clk 0:04:55.7]}
4. e3 {[%clk 0:04:51.2]} 4... bxc4 {[%clk 0:04:54.5]} 5. Bxc4 {[%clk 0:04:51]}
5... e6 {[%clk 0:04:54.1]} 6. O-O {[%clk 0:04:50.1]} 6... Be7 {[%clk 0:04:52.3]}
7. Nc3 {[%clk 0:04:48.9]} 7... O-O {[%clk 0:04:51.3]} 8. e4 {[%clk 0:04:48.3]}
8... d5 {[%clk 0:04:49.2]} 9. Bd3 {[%clk 0:04:46.8]} 9... dxe4 {[%clk
0:04:47.3]} 10. Nxe4 {[%clk 0:04:46.7]} 10... Nbd7 {[%clk 0:04:43.9]} 11. Qe2
{[%clk 0:04:45.8]} 11... Bb7 {[%clk 0:04:42.1]} 12. Re1 {[%clk 0:04:43.5]} 12...
Nxe4 {[%clk 0:04:39.6]} 13. Bxe4 {[%clk 0:04:43.4]} 13... Bxe4 {[%clk
0:04:38.8]} 14. Qxe4 {[%clk 0:04:43.3]} 14... Nf6 {[%clk 0:04:38.6]} 15. Qc6
{[%clk 0:04:36.3]} 15... Qd6 {[%clk 0:04:34]} 16. Qc2 {[%clk 0:04:23.5]} 16...
c5 {[%clk 0:04:24.1]} 17. dxc5 {[%clk 0:04:18.7]} 17... Qxc5 {[%clk 0:04:24]}
18. Qxc5 {[%clk 0:04:16.1]} 18... Bxc5 {[%clk 0:04:23.9]} 19. Bg5 {[%clk
0:04:15.3]} 19... Nd5 {[%clk 0:04:20.2]} 20. Rac1 {[%clk 0:04:12.2]} 20... Rfc8
{[%clk 0:04:17.7]} 21. a3 {[%clk 0:04:08.1]} 21... h6 {[%clk 0:04:10.1]} 22. Bh4
{[%clk 0:04:03]} 22... a5 {[%clk 0:04:07]} 23. Rc2 {[%clk 0:04:01]} 23... Bd6
{[%clk 0:03:59.7]} 24. Rec1 {[%clk 0:03:58.9]} 24... Rxc2 {[%clk 0:03:58.3]} 25.
Rxc2 {[%clk 0:03:58.8]} 25... Rb8 {[%clk 0:03:49.3]} 26. Bg3 {[%clk 0:03:57.5]}
26... Bxg3 {[%clk 0:03:47.8]} 27. hxg3 {[%clk 0:03:57.4]} 27... a4 {[%clk
0:03:44.6]} 28. Ne5 {[%clk 0:03:39.5]} 28... Rb3 {[%clk 0:03:30.2]} 29. Rc4
{[%clk 0:03:30.1]} 29... Nb6 {[%clk 0:03:07.5]} 30. Rb4 {[%clk 0:03:12.8]} 30...
Rxb4 {[%clk 0:03:02.4]} 31. axb4 {[%clk 0:03:12.7]} 31... f6 {[%clk 0:03:01.5]}
32. Nd3 {[%clk 0:03:09.9]} 32... Nc4 {[%clk 0:03:00]} 33. Kf1 {[%clk 0:03:08.1]}
33... Nxb2 {[%clk 0:02:52.7]} 34. Ke2 {[%clk 0:02:49]} 34... a3 {[%clk
0:02:19.9]} 35. Nc1 {[%clk 0:02:47.6]} 35... Na4 {[%clk 0:02:18.3]} 36. Kd2
{[%clk 0:02:44.5]} 36... Kf7 {[%clk 0:01:59.6]} 37. Kc2 {[%clk 0:02:43.4]} 37...
Nb6 {[%clk 0:01:58.2]} 38. Kb3 {[%clk 0:02:41.6]} 38... Nd5 {[%clk 0:01:56.9]}
39. Kxa3 {[%clk 0:02:37.4]} 39... Nc3 {[%clk 0:01:54.4]} 40. Kb3 {[%clk
0:02:28.2]} 40... Ne4 {[%clk 0:01:50]} 41. Nd3 {[%clk 0:02:27.7]} 41... Ke7
{[%clk 0:01:48.2]} 42. Kc4 {[%clk 0:02:25.8]} 42... Kd6 {[%clk 0:01:39.8]} 43.
Kb5 {[%clk 0:02:06.6]} 43... Kd5 {[%clk 0:01:29.5]} 44. Kb6 {[%clk 0:01:50.5]}
44... Kc4 {[%clk 0:01:24.6]} 45. Nc5 {[%clk 0:01:49]} 45... Nxf2 {[%clk
0:00:49.8]} 46. b5 {[%clk 0:01:47.9]} 46... e5 {[%clk 0:00:46.7]} 47. Kc6 {[%clk
0:01:46.9]} 47... e4 {[%clk 0:00:37]} 48. b6 {[%clk 0:01:38.8]} 48... e3 {[%clk
0:00:36.2]} 49. b7 {[%clk 0:01:37.8]} 49... e2 {[%clk 0:00:36.1]} 50. b8=Q
{[%clk 0:01:36]} 50... e1=Q {[%clk 0:00:36]} 51. Qf4+ {[%clk 0:01:05]} 51... Kc3
{[%clk 0:00:31]} 52. Qf3+ {[%clk 0:00:57.4]} 52... Kd2 {[%clk 0:00:24.8]} 53.
Nb3+ {[%clk 0:00:46.2]} 53... Kc2 {[%clk 0:00:23.9]} 54. Nd4+ {[%clk 0:00:44.9]}
54... Kd2 {[%clk 0:00:23.8]} 55. Nb3+ {[%clk 0:00:26.6]} 55... Kc2 {[%clk
0:00:22.5]} 56. Nc5 {[%clk 0:00:25.6]} 56... Kc1 {[%clk 0:00:22.2]} 57. Qa3+
{[%clk 0:00:22.5]} 57... Kd1 {[%clk 0:00:20.9]} 58. Qb2 {[%clk 0:00:19.4]} 58...
Qd2 {[%clk 0:00:18.5]} 59. Qxd2+ {[%clk 0:00:17.4]} 59... Kxd2 {[%clk
0:00:18.2]} 60. Ne6 {[%clk 0:00:17.3]} 60... g5 {[%clk 0:00:13.6]} 61. Kd6
{[%clk 0:00:17.2]} 61... Ne4+ {[%clk 0:00:12]} 62. Ke7 {[%clk 0:00:16.1]} 62...
f5 {[%clk 0:00:10]} 63. Kf7 {[%clk 0:00:15]} 63... Nxg3 {[%clk 0:00:09.9]} 64.
Kg6 {[%clk 0:00:14.3]} 64... f4 {[%clk 0:00:08]} 65. Kxh6 {[%clk 0:00:13.5]}
65... Ne4 {[%clk 0:00:07.2]} 66. Nxg5 {[%clk 0:00:11.6]} 66... Nxg5 {[%clk
0:00:06.5]} 67. Kxg5 {[%clk 0:00:11.4]} 67... Ke3 {[%clk 0:00:06.2]} 68. Kg4
{[%clk 0:00:10.9]} 68... Ke4 {[%clk 0:00:05.6]} 69. Kg5 {[%clk 0:00:09.5]} 69...
Ke3 {[%clk 0:00:04.4]} 70. Kg4 {[%clk 0:00:08.8]} 70... Kf2 {[%clk 0:00:03.7]}
71. Kh3 {[%clk 0:00:07.4]} 71... f3 {[%clk 0:00:02.2]} 72. g4 {[%clk 0:00:06.9]}
72... Ke2 {[%clk 0:00:00.8]} 73. g5 {[%clk 0:00:06.8]} 73... f2 {[%clk
0:00:00.5]} 74. Kg4 {[%clk 0:00:06.4]} 74... f1=Q {[%clk 0:00:00.4]} 75. Kh5
{[%clk 0:00:06.3]} 1-0

[Event "Live Chess"]
[Site "Chess.com"]
[Date "2024.06.01"]
[Round "-"]
[White "willc-h99"]
[Black "GerardATHart"]
[Result "1-0"]
[WhiteElo "2625"]
[BlackElo "1391"]
[TimeControl "300"]
[EndTime "14:55:59 PDT"]
[Termination "willc-h99 won by resignation"]

1. d4 {[%clk 0:04:57.8]} 1... f5 {[%clk 0:04:55.4]} 2. Bg5 {[%clk 0:04:56.7]}
2... g6 {[%clk 0:04:48.9]} 3. h4 {[%clk 0:04:52.2]} 3... d6 {[%clk 0:04:42.8]}
4. h5 {[%clk 0:04:46.8]} 4... Bg7 {[%clk 0:04:40.7]} 5. h6 {[%clk 0:04:35.9]}
5... Bf6 {[%clk 0:04:38.3]} 6. Nf3 {[%clk 0:04:35.2]} 6... Nc6 {[%clk
0:04:34.8]} 7. Nc3 {[%clk 0:04:30]} 7... e5 {[%clk 0:04:26.7]} 8. dxe5 {[%clk
0:04:28.8]} 8... dxe5 {[%clk 0:04:24.2]} 9. Qxd8+ {[%clk 0:04:25.6]} 9... Nxd8
{[%clk 0:04:18.4]} 10. Bxf6 {[%clk 0:04:23.5]} 10... Nxf6 {[%clk 0:04:16.1]} 11.
Nxe5 {[%clk 0:04:22.9]} 11... Be6 {[%clk 0:04:11.9]} 12. O-O-O {[%clk
0:04:19.8]} 12... O-O {[%clk 0:04:04.8]} 13. g3 {[%clk 0:04:15.1]} 13... Ng4
{[%clk 0:03:40.6]} 14. Nxg4 {[%clk 0:04:13.4]} 14... fxg4 {[%clk 0:03:38.4]} 15.
Ne4 {[%clk 0:04:07.2]} 15... Bf5 {[%clk 0:03:33.8]} 16. Ng5 {[%clk 0:04:06]}
16... Ne6 {[%clk 0:03:24]} 17. Nxe6 {[%clk 0:03:53.1]} 17... Bxe6 {[%clk
0:03:16.4]} 18. Rh2 {[%clk 0:03:52.2]} 18... Rf5 {[%clk 0:03:06.1]} 19. e3
{[%clk 0:03:45.3]} 19... Bxa2 {[%clk 0:03:00.8]} 20. b3 {[%clk 0:03:42.4]} 20...
Ra5 {[%clk 0:02:57.3]} 21. Kb2 {[%clk 0:03:41.1]} 21... Re8 {[%clk 0:02:45.2]}
22. Ra1 {[%clk 0:03:37.6]} 22... Re6 {[%clk 0:02:37.1]} 23. Bc4 {[%clk
0:03:35.8]} 1-0

[Event "Live Chess"]
[Site "Chess.com"]
[Date "2024.06.01"]
[Round "-"]
[White "KeithArkell"]
[Black "Queensandpawns"]
[Result "1/2-1/2"]
[WhiteElo "2415"]
[BlackElo "2382"]
[TimeControl "300"]
[EndTime "14:56:15 PDT"]
[Termination "Game drawn by repetition"]

1. d4 {[%clk 0:04:57.7]} 1... Nc6 {[%clk 0:04:56.5]} 2. d5 {[%clk 0:04:56.3]}
2... Ne5 {[%clk 0:04:55.6]} 3. Nf3 {[%clk 0:04:55.8]} 3... Ng6 {[%clk
0:04:52.5]} 4. c4 {[%clk 0:04:54.4]} 4... e6 {[%clk 0:04:51.7]} 5. Nc3 {[%clk
0:04:53.5]} 5... Nf6 {[%clk 0:04:51.2]} 6. g3 {[%clk 0:04:50.9]} 6... e5 {[%clk
0:04:47.9]} 7. Bg2 {[%clk 0:04:50.1]} 7... d6 {[%clk 0:04:47.3]} 8. O-O {[%clk
0:04:48.6]} 8... Be7 {[%clk 0:04:46.9]} 9. e4 {[%clk 0:04:47.9]} 9... O-O {[%clk
0:04:46.4]} 10. b4 {[%clk 0:04:46.3]} 10... a5 {[%clk 0:04:43.4]} 11. bxa5
{[%clk 0:04:45.3]} 11... Nd7 {[%clk 0:04:41.2]} 12. Be3 {[%clk 0:04:38.5]} 12...
Rxa5 {[%clk 0:04:38.9]} 13. a4 {[%clk 0:04:37.8]} 13... b6 {[%clk 0:04:37.9]}
14. Nd2 {[%clk 0:04:36.3]} 14... Nc5 {[%clk 0:04:36.8]} 15. Bxc5 {[%clk
0:04:31.9]} 15... Rxc5 {[%clk 0:04:36.3]} 16. Qe2 {[%clk 0:04:30.4]} 16... Ra5
{[%clk 0:04:33.3]} 17. Nb3 {[%clk 0:04:29.7]} 17... Ra8 {[%clk 0:04:32]} 18. a5
{[%clk 0:04:29.3]} 18... bxa5 {[%clk 0:04:30.3]} 19. Nxa5 {[%clk 0:04:28.6]}
19... Bd7 {[%clk 0:04:24.3]} 20. Nc6 {[%clk 0:04:27.7]} 20... Bxc6 {[%clk
0:04:22.8]} 21. dxc6 {[%clk 0:04:27.2]} 21... Bg5 {[%clk 0:04:09.1]} 22. Nd5
{[%clk 0:04:18.4]} 22... Ne7 {[%clk 0:03:59.4]} 23. Rxa8 {[%clk 0:04:09.4]}
23... Qxa8 {[%clk 0:03:59.3]} 24. Nxc7 {[%clk 0:04:06.3]} 24... Qxc6 {[%clk
0:03:57.5]} 25. Nd5 {[%clk 0:04:05.5]} 25... Nxd5 {[%clk 0:03:55.2]} 26. exd5
{[%clk 0:04:03]} 26... Qc5 {[%clk 0:03:52.5]} 27. h4 {[%clk 0:04:01.2]} 27...
Bd8 {[%clk 0:03:50.2]} 28. Rb1 {[%clk 0:03:59.6]} 28... Bb6 {[%clk 0:03:46]} 29.
Rb5 {[%clk 0:03:58]} 29... Qd4 {[%clk 0:03:43.9]} 30. Qb2 {[%clk 0:03:54.1]}
30... Qd1+ {[%clk 0:03:30.2]} 31. Kh2 {[%clk 0:03:52.2]} 31... Bd4 {[%clk
0:03:29.8]} 32. Qa2 {[%clk 0:03:48.3]} 32... Qe1 {[%clk 0:03:23.2]} 33. f3
{[%clk 0:03:43.4]} 33... f5 {[%clk 0:02:54.2]} 34. Rb1 {[%clk 0:03:41.4]} 34...
Qe3 {[%clk 0:02:52.5]} 35. Rb3 {[%clk 0:03:33.7]} 35... Qh6 {[%clk 0:02:49.9]}
36. Kh3 {[%clk 0:03:32.2]} 36... f4 {[%clk 0:02:47.8]} 37. g4 {[%clk 0:03:31.6]}
37... Qf6 {[%clk 0:02:24.8]} 38. Qe2 {[%clk 0:03:23.7]} 38... h5 {[%clk
0:02:23.3]} 39. Qe4 {[%clk 0:03:16.8]} 39... hxg4+ {[%clk 0:02:17.4]} 40. fxg4
{[%clk 0:03:16.7]} 40... Qh6 {[%clk 0:02:04.7]} 41. Rb7 {[%clk 0:03:12]} 41...
Bf2 {[%clk 0:02:03.1]} 42. h5 {[%clk 0:03:11.4]} 42... Qg5 {[%clk 0:02:01.9]}
43. Bf3 {[%clk 0:03:07.7]} 43... Qh4+ {[%clk 0:01:57.5]} 44. Kg2 {[%clk
0:03:07]} 44... Qg3+ {[%clk 0:01:57.4]} 45. Kf1 {[%clk 0:03:06.5]} 45... Qg1+
{[%clk 0:01:54.1]} 46. Ke2 {[%clk 0:03:05.9]} 46... Qe1+ {[%clk 0:01:54]} 47.
Kd3 {[%clk 0:03:05.3]} 47... Be3 {[%clk 0:01:49.1]} 48. Rxg7+ {[%clk 0:02:47.8]}
48... Kxg7 {[%clk 0:01:41.3]} 49. Qg6+ {[%clk 0:02:46.9]} 49... Kh8 {[%clk
0:01:40.9]} 50. Qh6+ {[%clk 0:02:46.3]} 50... Kg8 {[%clk 0:01:40.6]} 51. Qg6+
{[%clk 0:02:45.9]} 51... Kh8 {[%clk 0:01:40.3]} 52. Qh6+ {[%clk 0:02:45.5]}
52... Kg8 {[%clk 0:01:40]} 53. Qg6+ {[%clk 0:02:44.8]} 53... Kh8 {[%clk
0:01:39.6]} 1/2-1/2

[Event "Live Chess"]
[Site "Chess.com"]
[Date "2024.06.01"]
[Round "-"]
[White "jimwad"]
[Black "Crowded_House"]
[Result "0-1"]
[WhiteElo "1285"]
[BlackElo "1741"]
[TimeControl "300"]
[EndTime "14:56:16 PDT"]
[Termination "Crowded_House won by resignation"]

1. d4 {[%clk 0:04:58.5]} 1... e6 {[%clk 0:04:58]} 2. c4 {[%clk 0:04:57.7]} 2...
d5 {[%clk 0:04:55.4]} 3. Nc3 {[%clk 0:04:56.2]} 3... c6 {[%clk 0:04:53.8]} 4.
Bf4 {[%clk 0:04:53.8]} 4... Bd6 {[%clk 0:04:51.9]} 5. Bxd6 {[%clk 0:04:52.3]}
5... Qxd6 {[%clk 0:04:50.6]} 6. c5 {[%clk 0:04:52.2]} 6... Qc7 {[%clk
0:04:49.5]} 7. Nf3 {[%clk 0:04:51.1]} 7... b6 {[%clk 0:04:48.6]} 8. b4 {[%clk
0:04:49.3]} 8... b5 {[%clk 0:04:46]} 9. e3 {[%clk 0:04:44.9]} 9... a5 {[%clk
0:04:44.3]} 10. a3 {[%clk 0:04:41.4]} 10... Qb7 {[%clk 0:04:35.8]} 11. Ne5
{[%clk 0:04:35.7]} 11... Nd7 {[%clk 0:04:22]} 12. Nf3 {[%clk 0:04:29.6]} 12...
axb4 {[%clk 0:04:19.4]} 13. axb4 {[%clk 0:04:28.5]} 13... Ngf6 {[%clk 0:04:09]}
14. Bd3 {[%clk 0:04:26.7]} 14... O-O {[%clk 0:04:05.7]} 15. O-O {[%clk
0:04:25.2]} 15... Rd8 {[%clk 0:03:52.5]} 16. Qc2 {[%clk 0:04:23]} 16... Nf8
{[%clk 0:03:48.3]} 17. Qb2 {[%clk 0:04:13.6]} 17... Bd7 {[%clk 0:03:45.3]} 18.
Ne5 {[%clk 0:04:09]} 18... Ng6 {[%clk 0:03:37.5]} 19. Nxd7 {[%clk 0:04:04.3]}
19... Nxd7 {[%clk 0:03:32.8]} 20. Bxg6 {[%clk 0:04:03.1]} 20... hxg6 {[%clk
0:03:31.5]} 21. Rxa8 {[%clk 0:03:52.8]} 21... Rxa8 {[%clk 0:03:29.9]} 22. Ra1
{[%clk 0:03:52.4]} 22... Ra7 {[%clk 0:03:28.2]} 23. Rxa7 {[%clk 0:03:46.5]}
23... Qxa7 {[%clk 0:03:27.1]} 24. h3 {[%clk 0:03:46.4]} 24... Nf6 {[%clk
0:03:22.3]} 25. Ne2 {[%clk 0:03:45]} 25... Qa4 {[%clk 0:03:16.8]} 26. Nc3 {[%clk
0:03:42.1]} 26... Qa8 {[%clk 0:03:09.8]} 27. Ne2 {[%clk 0:03:40.7]} 27... Ne4
{[%clk 0:03:07.8]} 28. f3 {[%clk 0:03:38.1]} 28... Nf6 {[%clk 0:03:01.9]} 29.
Kf2 {[%clk 0:03:32.6]} 29... Qa4 {[%clk 0:02:55.6]} 30. Nc3 {[%clk 0:03:31]}
30... Qa8 {[%clk 0:02:54.3]} 31. Qa2 {[%clk 0:03:29.9]} 31... Qxa2+ {[%clk
0:02:49]} 32. Nxa2 {[%clk 0:03:28.8]} 32... Nd7 {[%clk 0:02:44.7]} 33. g4 {[%clk
0:03:26.9]} 33... e5 {[%clk 0:02:43.5]} 34. h4 {[%clk 0:03:23.1]} 34... f6
{[%clk 0:02:32.4]} 35. Nc1 {[%clk 0:03:19.3]} 35... Kh7 {[%clk 0:02:29.2]} 36.
Nb3 {[%clk 0:03:18.2]} 36... Kh6 {[%clk 0:02:23.8]} 37. Na5 {[%clk 0:03:17.2]}
37... Nb8 {[%clk 0:02:22.4]} 38. Kg3 {[%clk 0:03:11.4]} 38... exd4 {[%clk
0:02:20.3]} 39. exd4 {[%clk 0:03:10.1]} 39... g5 {[%clk 0:02:12.9]} 40. h5
{[%clk 0:03:07.8]} 40... g6 {[%clk 0:02:09.9]} 41. hxg6 {[%clk 0:03:04.7]} 41...
Kxg6 {[%clk 0:02:08.9]} 42. f4 {[%clk 0:03:04]} 42... f5 {[%clk 0:01:59.3]} 43.
gxf5+ {[%clk 0:03:01.1]} 43... Kxf5 {[%clk 0:01:58.1]} 44. fxg5 {[%clk
0:03:00.3]} 44... Kxg5 {[%clk 0:01:57.8]} 45. Kf3 {[%clk 0:02:59.5]} 45... Kf5
{[%clk 0:01:57]} 46. Ke3 {[%clk 0:02:58.3]} 46... Kg4 {[%clk 0:01:53.8]} 47. Nb3
{[%clk 0:02:56.7]} 47... Kg3 {[%clk 0:01:44.1]} 48. Na5 {[%clk 0:02:48.5]} 48...
Kg4 {[%clk 0:01:40.7]} 49. Nb3 {[%clk 0:02:47.3]} 49... Na6 {[%clk 0:01:36.3]}
50. Na5 {[%clk 0:02:43.7]} 50... Nxb4 {[%clk 0:01:34.3]} 51. Ke2 {[%clk
0:02:37]} 51... Kf4 {[%clk 0:01:29.8]} 52. Kd2 {[%clk 0:02:36.1]} 52... Ke4
{[%clk 0:01:28.9]} 53. Kc3 {[%clk 0:02:34.9]} 53... Na2+ {[%clk 0:01:23.8]} 54.
Kb3 {[%clk 0:02:33.8]} 54... Nc1+ {[%clk 0:01:22.4]} 55. Kc3 {[%clk 0:02:32.6]}
55... Ne2+ {[%clk 0:01:20.5]} 56. Kb4 {[%clk 0:02:31.9]} 56... Nxd4 {[%clk
0:01:19.6]} 57. Kc3 {[%clk 0:02:31.2]} 57... Ke5 {[%clk 0:01:16]} 58. Kd3 {[%clk
0:02:27.6]} 58... Nf5 {[%clk 0:01:06.7]} 59. Nxc6+ {[%clk 0:02:26.4]} 59... Ke6
{[%clk 0:01:04.6]} 60. Nd4+ {[%clk 0:02:19]} 60... Nxd4 {[%clk 0:00:59]} 61.
Kxd4 {[%clk 0:02:18.2]} 61... b4 {[%clk 0:00:55.1]} 62. c6 {[%clk 0:02:15.9]}
62... Kd6 {[%clk 0:00:53.7]} 63. c7 {[%clk 0:02:14.8]} 63... Kxc7 {[%clk
0:00:52.4]} 64. Kxd5 {[%clk 0:02:13.9]} 64... b3 {[%clk 0:00:51.4]} 65. Kc4
{[%clk 0:02:13.8]} 65... b2 {[%clk 0:00:51.3]} 66. Kc3 {[%clk 0:02:13.1]} 66...
b1=Q {[%clk 0:00:50.8]} 0-1

[Event "Live Chess"]
[Site "Chess.com"]
[Date "2024.06.01"]
[Round "-"]
[White "Mangoalo"]
[Black "lestmak"]
[Result "1-0"]
[WhiteElo "1064"]
[BlackElo "527"]
[TimeControl "300"]
[EndTime "14:56:17 PDT"]
[Termination "Mangoalo won by resignation"]

1. e4 {[%clk 0:04:58]} 1... c6 {[%clk 0:04:58]} 2. Nf3 {[%clk 0:04:57.9]} 2...
d5 {[%clk 0:04:57.3]} 3. exd5 {[%clk 0:04:57.1]} 3... cxd5 {[%clk 0:04:56.2]} 4.
Bb5+ {[%clk 0:04:56.8]} 4... Nc6 {[%clk 0:04:53.8]} 5. Bxc6+ {[%clk 0:04:56.1]}
5... bxc6 {[%clk 0:04:53.7]} 6. d4 {[%clk 0:04:55]} 6... Bg4 {[%clk 0:04:47.7]}
7. Bf4 {[%clk 0:04:53.8]} 7... Bxf3 {[%clk 0:04:44.2]} 8. Qxf3 {[%clk
0:04:53.7]} 8... e6 {[%clk 0:04:42]} 9. O-O {[%clk 0:04:52.4]} 9... Nf6 {[%clk
0:04:41.1]} 10. Bg5 {[%clk 0:04:50.6]} 10... Be7 {[%clk 0:04:39.9]} 11. Nc3
{[%clk 0:04:48.6]} 11... h6 {[%clk 0:04:38.2]} 12. Bxf6 {[%clk 0:04:47.6]} 12...
Bxf6 {[%clk 0:04:37.5]} 13. Rad1 {[%clk 0:04:45.2]} 13... O-O {[%clk 0:04:37.4]}
14. g4 {[%clk 0:04:41.6]} 14... Qb6 {[%clk 0:04:29.3]} 15. Qd3 {[%clk
0:04:25.8]} 15... Qxb2 {[%clk 0:04:22.7]} 16. f4 {[%clk 0:04:23.1]} 16... Qb6
{[%clk 0:03:51.2]} 17. h4 {[%clk 0:04:18.8]} 17... Bxh4 {[%clk 0:03:47.8]} 18.
Kg2 {[%clk 0:04:07.3]} 18... Bf6 {[%clk 0:03:38.1]} 19. Kh3 {[%clk 0:04:04.4]}
19... c5 {[%clk 0:03:32.2]} 20. dxc5 {[%clk 0:04:01.2]} 20... Qxc5 {[%clk
0:03:31]} 21. Ne2 {[%clk 0:03:59.8]} 21... Qd6 {[%clk 0:03:11.4]} 22. g5 {[%clk
0:03:44.5]} 22... hxg5 {[%clk 0:03:06.7]} 23. fxg5 {[%clk 0:03:44.4]} 23... Bxg5
{[%clk 0:03:05]} 24. Qg3 {[%clk 0:03:42.5]} 24... Qxg3+ {[%clk 0:02:43]} 25.
Nxg3 {[%clk 0:03:42.4]} 25... Bf6 {[%clk 0:02:41.9]} 26. Nh5 {[%clk 0:03:36.1]}
26... Rfc8 {[%clk 0:02:30.2]} 27. Rg1 {[%clk 0:03:31.4]} 27... Kf8 {[%clk
0:02:26.5]} 28. Nxf6 {[%clk 0:03:27.2]} 28... gxf6 {[%clk 0:02:25.2]} 29. Rg2
{[%clk 0:03:17.1]} 29... Ke7 {[%clk 0:02:22.7]} 30. Rdg1 {[%clk 0:03:14.4]}
30... Rh8+ {[%clk 0:02:18.7]} 31. Kg3 {[%clk 0:03:13.2]} 31... Rag8+ {[%clk
0:02:17.7]} 32. Kf3 {[%clk 0:03:11.8]} 32... Rh3+ {[%clk 0:02:13.9]} 33. Rg3
{[%clk 0:03:10.3]} 33... Rhh8 {[%clk 0:02:05.5]} 34. Rxg8 {[%clk 0:03:05.8]}
34... Rxg8 {[%clk 0:02:00.8]} 35. Rxg8 {[%clk 0:03:05.7]} 1-0